[Event "Titled Tuesday Blitz March 21 Early 2023"]
[White "Fajdetic, Hrvoje"]
[Black "Golubev, Mikhail"]
[WhiteFideId "14501945"]
[BlackFideId "14100983"]
[WhiteElo "2185"]
[BlackElo "2374"]
[Result "0-1"]
[Round "11"]
[TimeControl "180+2"]
[Date "2023.03.21"]
[WhiteClock "0:00:07"]
[BlackClock "0:00:48"]

1. d4 {[%clk 0:02:51]}  g6 {[%clk 0:03:00]} 2. Nc3 {[%clk 0:02:50]}  Bg7 {[%clk 0:03:00]} 3. e4 {[%clk 0:02:51]}  d6 {[%clk 0:02:59]} 4. Be3 {[%clk 0:02:51]}  c6 {[%clk 0:02:55]} 5. Qd2 {[%clk 0:02:51]}  b5 {[%clk 0:02:55]} 6. f3 {[%clk 0:02:50]}  Nd7 {[%clk 0:02:51]} 7. O-O-O {[%clk 0:02:45]}  b4 {[%clk 0:02:46]} 8. Nce2 {[%clk 0:02:45]}  a5 {[%clk 0:02:45]} 9. Kb1 {[%clk 0:02:45]}  Ba6 {[%clk 0:02:39]} 10. Nc1 {[%clk 0:02:44]}  Bxf1 {[%clk 0:02:38]} 11. Rxf1 {[%clk 0:02:45]}  Nb6 {[%clk 0:02:32]} 12. Qd3 {[%clk 0:02:22]}  Nf6 {[%clk 0:02:29]} 13. g4 {[%clk 0:02:17]}  Qc8 {[%clk 0:02:06]} 14. h4 {[%clk 0:02:05]}  h5 {[%clk 0:02:05]} 15. g5 {[%clk 0:01:57]}  Nfd7 {[%clk 0:02:05]} 16. f4 {[%clk 0:01:48]}  c5 {[%clk 0:02:04]} 17. dxc5 {[%clk 0:01:39]}  Nxc5 {[%clk 0:02:02]} 18. Bxc5 {[%clk 0:01:39]}  Qxc5 {[%clk 0:02:00]} 19. Nf3 {[%clk 0:01:32]}  a4 {[%clk 0:01:52]} 20. e5 {[%clk 0:01:22]}  Nc4 {[%clk 0:01:50]} 21. Rd1 {[%clk 0:00:48]}  O-O {[%clk 0:01:37]} 22. Qd4 {[%clk 0:00:43]}  Qc7 {[%clk 0:01:23]} 23. Nd3 {[%clk 0:00:27]}  Rfb8 {[%clk 0:01:08]} 24. Qe4 {[%clk 0:00:08]}  b3 {[%clk 0:00:53]} 25. cxb3 {[%clk 0:00:07]}  axb3 {[%clk 0:00:53]} 26. a3 {[%clk 0:00:07]}  Nxa3+ {[%clk 0:00:49]} 27. bxa3 {[%clk 0:00:07]}  Qc2+ {[%clk 0:00:48]} 0-1


[Site "https://www.chess.com"]

[Event "Titled Tuesday Blitz March 21 Early 2023"]
[White "Rottenwohrer Suarez, Juan"]
[Black "monkins"]
[WhiteFideId "32068182"]
[WhiteElo "2174"]
[BlackElo "2241"]
[Result "0-1"]
[Round "11"]
[TimeControl "180+2"]
[Date "2023.03.21"]
[WhiteClock "0:00:02"]
[BlackClock "0:00:07"]

1. e4 {[%clk 0:03:00]}  c5 {[%clk 0:02:59]} 2. Nf3 {[%clk 0:03:00]}  g6 {[%clk 0:02:59]} 3. d4 {[%clk 0:03:00]}  cxd4 {[%clk 0:03:00]} 4. Nxd4 {[%clk 0:03:01]}  Nf6 {[%clk 0:03:00]} 5. Nc3 {[%clk 0:02:14]}  h5 {[%clk 0:02:59]} 6. h3 {[%clk 0:02:12]}  Qa5 {[%clk 0:02:51]} 7. Nb3 {[%clk 0:02:06]}  Qc7 {[%clk 0:02:42]} 8. Be3 {[%clk 0:01:59]}  a6 {[%clk 0:02:38]} 9. a4 {[%clk 0:01:54]}  Bg7 {[%clk 0:02:38]} 10. Be2 {[%clk 0:01:53]}  O-O {[%clk 0:02:27]} 11. O-O {[%clk 0:01:53]}  d6 {[%clk 0:02:22]} 12. f4 {[%clk 0:01:26]}  Nc6 {[%clk 0:01:59]} 13. a5 {[%clk 0:01:11]}  Be6 {[%clk 0:01:52]} 14. Bb6 {[%clk 0:01:04]}  Qd7 {[%clk 0:01:45]} 15. Nd4 {[%clk 0:01:05]}  Nxd4 {[%clk 0:01:43]} 16. Bxd4 {[%clk 0:01:06]}  Rac8 {[%clk 0:01:37]} 17. f5 {[%clk 0:01:01]}  Bc4 {[%clk 0:01:34]} 18. fxg6 {[%clk 0:00:59]}  fxg6 {[%clk 0:01:33]} 19. Bxc4+ {[%clk 0:00:54]}  Rxc4 {[%clk 0:01:33]} 20. Bxf6 {[%clk 0:00:53]}  exf6 {[%clk 0:01:24]} 21. Qd5+ {[%clk 0:00:41]}  Qf7 {[%clk 0:01:23]} 22. Qxd6 {[%clk 0:00:42]}  Rc6 {[%clk 0:01:10]} 23. Qd5 {[%clk 0:00:40]}  f5 {[%clk 0:01:00]} 24. Qxf7+ {[%clk 0:00:38]}  Rxf7 {[%clk 0:01:00]} 25. exf5 {[%clk 0:00:38]}  Bxc3 {[%clk 0:01:00]} 26. bxc3 {[%clk 0:00:35]}  gxf5 {[%clk 0:00:55]} 27. Rf3 {[%clk 0:00:34]}  Kg7 {[%clk 0:00:54]} 28. Ra4 {[%clk 0:00:16]}  Rc5 {[%clk 0:00:53]} 29. h4 {[%clk 0:00:15]}  Rfc7 {[%clk 0:00:48]} 30. Rg3+ {[%clk 0:00:14]}  Kf6 {[%clk 0:00:43]} 31. Rg5 {[%clk 0:00:14]}  Rxc3 {[%clk 0:00:42]} 32. Rf4 {[%clk 0:00:14]}  R7c5 {[%clk 0:00:38]} 33. Rxh5 {[%clk 0:00:13]}  Rxc2 {[%clk 0:00:38]} 34. Rh6+ {[%clk 0:00:09]}  Ke5 {[%clk 0:00:38]} 35. Rf3 {[%clk 0:00:08]}  Rxa5 {[%clk 0:00:36]} 36. Rxf5+ {[%clk 0:00:08]}  Kxf5 {[%clk 0:00:33]} 37. Rh5+ {[%clk 0:00:09]}  Kg4 {[%clk 0:00:33]} 38. Rxa5 {[%clk 0:00:10]}  Kxh4 {[%clk 0:00:30]} 39. Kf1 {[%clk 0:00:08]}  Kg4 {[%clk 0:00:25]} 40. Rd5 {[%clk 0:00:08]}  b5 {[%clk 0:00:21]} 41. Rd8 {[%clk 0:00:04]}  Kf4 {[%clk 0:00:16]} 42. Ra8 {[%clk 0:00:02]}  Ra2 {[%clk 0:00:16]} 43. Ke1 {[%clk 0:00:01]}  Ke3 {[%clk 0:00:14]} 44. Kd1 {[%clk 0:00:01]}  Kd3 {[%clk 0:00:13]} 45. Ke1 {[%clk 0:00:01]}  b4 {[%clk 0:00:12]} 46. g4 {[%clk 0:00:01]}  b3 {[%clk 0:00:10]} 47. Rb8 {[%clk 0:00:02]}  Kc2 {[%clk 0:00:08]} 48. g5 {[%clk 0:00:02]}  Ra1+ {[%clk 0:00:07]} 49. Kf2 {[%clk 0:00:02]}  b2 {[%clk 0:00:07]} 50. g6 {[%clk 0:00:02]}  b1=Q {[%clk 0:00:06]} 51. Rxb1 {[%clk 0:00:01]}  Rxb1 {[%clk 0:00:06]} 52. g7 {[%clk 0:00:02]}  Rb8 {[%clk 0:00:07]} 0-1


[Site "https://www.chess.com"]

[Event "Titled Tuesday Blitz March 21 Early 2023"]
[White "Quinones Garcia, Santiago"]
[Black "Clawitter, Craig"]
[WhiteFideId "4408497"]
[BlackFideId "2023105"]
[WhiteElo "2263"]
[BlackElo "2237"]
[Result "1-0"]
[Round "11"]
[TimeControl "180+2"]
[Date "2023.03.21"]
[WhiteClock "0:00:52"]
[BlackClock "0:00:03"]

1. d4 {[%clk 0:02:56]}  e6 {[%clk 0:03:00]} 2. c4 {[%clk 0:02:56]}  Nf6 {[%clk 0:03:00]} 3. Nf3 {[%clk 0:02:57]}  d5 {[%clk 0:03:00]} 4. Bg5 {[%clk 0:02:55]}  dxc4 {[%clk 0:02:59]} 5. Nc3 {[%clk 0:02:56]}  c5 {[%clk 0:02:57]} 6. e3 {[%clk 0:02:53]}  Nc6 {[%clk 0:02:53]} 7. Bxc4 {[%clk 0:02:53]}  cxd4 {[%clk 0:02:53]} 8. exd4 {[%clk 0:02:54]}  Be7 {[%clk 0:02:51]} 9. O-O {[%clk 0:02:54]}  O-O {[%clk 0:02:50]} 10. Re1 {[%clk 0:02:54]}  b6 {[%clk 0:02:46]} 11. a3 {[%clk 0:02:54]}  Bb7 {[%clk 0:02:46]} 12. Qd3 {[%clk 0:02:54]}  Rc8 {[%clk 0:02:34]} 13. Rad1 {[%clk 0:02:54]}  Na5 {[%clk 0:02:11]} 14. Ba2 {[%clk 0:02:53]}  Re8 {[%clk 0:01:59]} 15. Bb1 {[%clk 0:02:53]}  g6 {[%clk 0:01:58]} 16. Ne5 {[%clk 0:02:52]}  Nd5 {[%clk 0:01:50]} 17. Bxe7 {[%clk 0:02:44]}  Rxe7 {[%clk 0:01:48]} 18. Ne4 {[%clk 0:02:39]}  f6 {[%clk 0:01:20]} 19. Ng4 {[%clk 0:02:26]}  Rd7 {[%clk 0:00:57]} 20. Nh6+ {[%clk 0:01:51]}  Kg7 {[%clk 0:00:54]} 21. Qh3 {[%clk 0:01:45]}  Nf4 {[%clk 0:00:40]} 22. Qg3 {[%clk 0:01:41]}  Nh5 {[%clk 0:00:24]} 23. Qe3 {[%clk 0:01:38]}  Nc4 {[%clk 0:00:23]} 24. Qc1 {[%clk 0:01:35]}  Nxa3 {[%clk 0:00:15]} 25. Qe3 {[%clk 0:01:26]}  Nc4 {[%clk 0:00:14]} 26. Qc1 {[%clk 0:01:26]}  Na3 {[%clk 0:00:10]} 27. Qe3 {[%clk 0:01:25]}  Nxb1 {[%clk 0:00:09]} 28. Rxb1 {[%clk 0:01:25]}  Rxd4 {[%clk 0:00:09]} 29. Ng4 {[%clk 0:01:23]}  Rxe4 {[%clk 0:00:08]} 30. Qh3 {[%clk 0:01:15]}  Rxe1+ {[%clk 0:00:07]} 31. Rxe1 {[%clk 0:01:16]}  Qd5 {[%clk 0:00:06]} 32. Ne3 {[%clk 0:01:14]}  Qg5 {[%clk 0:00:06]} 33. Qxe6 {[%clk 0:01:14]}  Rc7 {[%clk 0:00:05]} 34. Qd6 {[%clk 0:01:13]}  Rf7 {[%clk 0:00:05]} 35. g3 {[%clk 0:01:11]}  f5 {[%clk 0:00:05]} 36. Rc1 {[%clk 0:01:09]}  f4 {[%clk 0:00:04]} 37. Ng2 {[%clk 0:01:01]}  Qd5 {[%clk 0:00:04]} 38. Qxd5 {[%clk 0:00:54]}  Bxd5 {[%clk 0:00:05]} 39. Ne1 {[%clk 0:00:55]}  fxg3 {[%clk 0:00:05]} 40. hxg3 {[%clk 0:00:56]}  Nf6 {[%clk 0:00:05]} 41. Nd3 {[%clk 0:00:57]}  Rd7 {[%clk 0:00:05]} 42. Ne5 {[%clk 0:00:57]}  Re7 {[%clk 0:00:06]} 43. f4 {[%clk 0:00:56]}  Nd7 {[%clk 0:00:05]} 44. Nd3 {[%clk 0:00:55]}  Nc5 {[%clk 0:00:05]} 45. Nb4 {[%clk 0:00:55]}  Bb7 {[%clk 0:00:05]} 46. Rc3 {[%clk 0:00:54]}  Re2 {[%clk 0:00:05]} 47. b3 {[%clk 0:00:54]}  Rg2+ {[%clk 0:00:05]} 48. Kf1 {[%clk 0:00:54]}  Ne4 {[%clk 0:00:04]} 49. Re3 {[%clk 0:00:53]}  Nd2+ {[%clk 0:00:04]} 50. Ke1 {[%clk 0:00:53]}  Nf3+ {[%clk 0:00:04]} 51. Kd1 {[%clk 0:00:52]}  Rd2+ {[%clk 0:00:04]} 52. Kc1 {[%clk 0:00:52]}  Rd4 {[%clk 0:00:03]} 53. Nd3 {[%clk 0:00:52]}  Rxd3 {[%clk 0:00:03]} 54. Rxd3 {[%clk 0:00:52]} 1-0


[Site "https://www.chess.com"]

[Event "Titled Tuesday Blitz March 21 Early 2023"]
[White "Kovalevsky, Stanislav"]
[Black "Ardila, Oscar Humberto"]
[WhiteFideId "13508598"]
[BlackFideId "4404742"]
[WhiteElo "2174"]
[BlackElo "1911"]
[Result "1-0"]
[Round "11"]
[TimeControl "180+2"]
[Date "2023.03.21"]
[WhiteClock "0:00:45"]
[BlackClock "0:00:31"]

1. c4 {[%clk 0:03:00]}  Nf6 {[%clk 0:02:59]} 2. Nc3 {[%clk 0:03:00]}  g6 {[%clk 0:02:59]} 3. g3 {[%clk 0:03:01]}  Bg7 {[%clk 0:02:59]} 4. Bg2 {[%clk 0:03:02]}  O-O {[%clk 0:02:59]} 5. e4 {[%clk 0:03:02]}  d6 {[%clk 0:03:00]} 6. Nge2 {[%clk 0:03:03]}  Nbd7 {[%clk 0:03:00]} 7. b4 {[%clk 0:03:03]}  e5 {[%clk 0:02:59]} 8. Bb2 {[%clk 0:03:03]}  a5 {[%clk 0:02:59]} 9. b5 {[%clk 0:03:02]}  Nc5 {[%clk 0:02:59]} 10. d3 {[%clk 0:02:55]}  c6 {[%clk 0:02:32]} 11. a4 {[%clk 0:02:54]}  Bg4 {[%clk 0:02:30]} 12. O-O {[%clk 0:02:51]}  Qd7 {[%clk 0:02:29]} 13. Re1 {[%clk 0:02:45]}  Bh3 {[%clk 0:02:25]} 14. Bh1 {[%clk 0:02:46]}  Ng4 {[%clk 0:02:23]} 15. f3 {[%clk 0:02:23]}  Ne3 {[%clk 0:01:59]} 16. Qb1 {[%clk 0:02:23]}  f5 {[%clk 0:01:54]} 17. Bc1 {[%clk 0:02:22]}  f4 {[%clk 0:01:51]} 18. Ra3 {[%clk 0:02:07]}  d5 {[%clk 0:01:45]} 19. cxd5 {[%clk 0:02:00]}  cxd5 {[%clk 0:01:45]} 20. Bxe3 {[%clk 0:02:00]}  d4 {[%clk 0:01:34]} 21. Bf2 {[%clk 0:01:53]}  dxc3 {[%clk 0:01:32]} 22. Bxc5 {[%clk 0:01:53]}  Rfc8 {[%clk 0:01:21]} 23. Rxc3 {[%clk 0:01:53]}  b6 {[%clk 0:01:09]} 24. Bxb6 {[%clk 0:01:47]}  Rxc3 {[%clk 0:01:08]} 25. Nxc3 {[%clk 0:01:46]}  Bf8 {[%clk 0:01:07]} 26. Nd5 {[%clk 0:01:41]}  Kg7 {[%clk 0:01:05]} 27. Qb2 {[%clk 0:01:38]}  Bd6 {[%clk 0:01:03]} 28. d4 {[%clk 0:01:36]}  Re8 {[%clk 0:00:59]} 29. dxe5 {[%clk 0:01:35]}  Bxe5 {[%clk 0:00:59]} 30. Bd4 {[%clk 0:01:36]}  Bxd4+ {[%clk 0:00:53]} 31. Qxd4+ {[%clk 0:01:37]}  Kh6 {[%clk 0:00:54]} 32. gxf4 {[%clk 0:01:20]}  Rc8 {[%clk 0:00:46]} 33. f5 {[%clk 0:01:11]}  Rc2 {[%clk 0:00:41]} 34. f6 {[%clk 0:01:04]}  Qd6 {[%clk 0:00:31]} 35. e5 {[%clk 0:00:46]}  Qe6 {[%clk 0:00:31]} 36. Qh4# {[%clk 0:00:45]} 1-0


[Site "https://www.chess.com"]

[Event "Titled Tuesday Blitz March 21 Early 2023"]
[White "Fabris, Alberto"]
[Black "Corredor Castellanos, Camilo"]
[WhiteFideId "801348"]
[BlackFideId "4425871"]
[WhiteElo "2203"]
[BlackElo "1994"]
[Result "1/2-1/2"]
[Round "11"]
[TimeControl "180+2"]
[Date "2023.03.21"]
[WhiteClock "0:00:23"]
[BlackClock "0:01:34"]

1. e4 {[%clk 0:03:00]}  c5 {[%clk 0:03:00]} 2. Nf3 {[%clk 0:02:59]}  d6 {[%clk 0:03:00]} 3. Bb5+ {[%clk 0:02:58]}  Nd7 {[%clk 0:03:00]} 4. d4 {[%clk 0:02:57]}  cxd4 {[%clk 0:03:01]} 5. Qxd4 {[%clk 0:02:57]}  a6 {[%clk 0:03:01]} 6. Bxd7+ {[%clk 0:02:56]}  Bxd7 {[%clk 0:03:02]} 7. Bg5 {[%clk 0:02:52]}  h6 {[%clk 0:02:59]} 8. Bh4 {[%clk 0:02:50]}  Qa5+ {[%clk 0:02:58]} 9. Nc3 {[%clk 0:02:49]}  Nf6 {[%clk 0:02:56]} 10. O-O {[%clk 0:02:46]}  Rc8 {[%clk 0:02:57]} 11. e5 {[%clk 0:02:36]}  dxe5 {[%clk 0:02:48]} 12. Nxe5 {[%clk 0:02:36]}  Be6 {[%clk 0:02:49]} 13. Rad1 {[%clk 0:02:21]}  g5 {[%clk 0:02:49]} 14. Bg3 {[%clk 0:02:20]}  Bg7 {[%clk 0:02:50]} 15. Rfe1 {[%clk 0:02:14]}  O-O {[%clk 0:02:48]} 16. Qd2 {[%clk 0:02:11]}  Rfd8 {[%clk 0:02:40]} 17. Qe2 {[%clk 0:02:09]}  Bf5 {[%clk 0:02:36]} 18. Rxd8+ {[%clk 0:02:06]}  Rxd8 {[%clk 0:02:34]} 19. Rd1 {[%clk 0:02:05]}  h5 {[%clk 0:02:27]} 20. h3 {[%clk 0:02:04]}  g4 {[%clk 0:02:26]} 21. hxg4 {[%clk 0:02:01]}  Nxg4 {[%clk 0:02:26]} 22. Nxg4 {[%clk 0:01:59]}  Bxg4 {[%clk 0:02:26]} 23. f3 {[%clk 0:01:58]}  Be6 {[%clk 0:02:23]} 24. Rxd8+ {[%clk 0:01:56]}  Qxd8 {[%clk 0:02:24]} 25. Be5 {[%clk 0:01:46]}  Qb6+ {[%clk 0:02:20]} 26. Kh1 {[%clk 0:01:37]}  Qxb2 {[%clk 0:02:19]} 27. Bxg7 {[%clk 0:01:36]}  Qc1+ {[%clk 0:02:19]} 28. Kh2 {[%clk 0:01:34]}  Kxg7 {[%clk 0:02:19]} 29. Qe5+ {[%clk 0:01:31]}  Kg8 {[%clk 0:02:19]} 30. Qxh5 {[%clk 0:01:27]}  Qf4+ {[%clk 0:02:15]} 31. Kh1 {[%clk 0:01:11]}  Qc1+ {[%clk 0:02:15]} 32. Kh2 {[%clk 0:01:11]}  Qxc2 {[%clk 0:02:15]} 33. Ne4 {[%clk 0:01:09]}  Qc7+ {[%clk 0:02:15]} 34. Kh1 {[%clk 0:01:07]}  Qc1+ {[%clk 0:02:14]} 35. Kh2 {[%clk 0:01:07]}  Qf4+ {[%clk 0:02:14]} 36. Kh1 {[%clk 0:01:07]}  b5 {[%clk 0:02:12]} 37. Qc5 {[%clk 0:00:59]}  Bf5 {[%clk 0:02:04]} 38. Qxe7 {[%clk 0:00:55]}  Bxe4 {[%clk 0:02:01]} 39. fxe4 {[%clk 0:00:55]}  Kg7 {[%clk 0:02:01]} 40. e5 {[%clk 0:00:51]}  a5 {[%clk 0:01:59]} 41. Qc5 {[%clk 0:00:47]}  Qc4 {[%clk 0:01:58]} 42. Qe7 {[%clk 0:00:40]}  Qc1+ {[%clk 0:01:58]} 43. Kh2 {[%clk 0:00:40]}  Qf4+ {[%clk 0:01:58]} 44. Kh1 {[%clk 0:00:39]}  a4 {[%clk 0:01:59]} 45. a3 {[%clk 0:00:36]}  Kg6 {[%clk 0:01:39]} 46. Qd6+ {[%clk 0:00:34]}  Kh5 {[%clk 0:01:40]} 47. Kg1 {[%clk 0:00:30]}  Kg4 {[%clk 0:01:37]} 48. Qd1+ {[%clk 0:00:24]}  Kf5 {[%clk 0:01:36]} 49. Qd7+ {[%clk 0:00:22]}  Kxe5 {[%clk 0:01:35]} 50. Qxb5+ {[%clk 0:00:22]}  Kf6 {[%clk 0:01:35]} 51. Qc6+ {[%clk 0:00:21]}  Kg5 {[%clk 0:01:35]} 52. Qd5+ {[%clk 0:00:21]}  Kg6 {[%clk 0:01:31]} 53. Qc6+ {[%clk 0:00:21]}  Kh5 {[%clk 0:01:30]} 54. Qf3+ {[%clk 0:00:20]}  Kg5 {[%clk 0:01:27]} 55. Qxf4+ {[%clk 0:00:19]}  Kxf4 {[%clk 0:01:28]} 56. Kf2 {[%clk 0:00:19]}  Ke4 {[%clk 0:01:28]} 57. Ke2 {[%clk 0:00:20]}  f5 {[%clk 0:01:28]} 58. Kd2 {[%clk 0:00:19]}  Kf4 {[%clk 0:01:27]} 59. Ke2 {[%clk 0:00:19]}  Kg3 {[%clk 0:01:27]} 60. Kf1 {[%clk 0:00:19]}  f4 {[%clk 0:01:25]} 61. Kg1 {[%clk 0:00:19]}  f3 {[%clk 0:01:26]} 62. gxf3 {[%clk 0:00:19]}  Kxf3 {[%clk 0:01:27]} 63. Kf1 {[%clk 0:00:20]}  Ke3 {[%clk 0:01:28]} 64. Ke1 {[%clk 0:00:20]}  Kd3 {[%clk 0:01:29]} 65. Kd1 {[%clk 0:00:21]}  Kc3 {[%clk 0:01:29]} 66. Kc1 {[%clk 0:00:21]}  Kb3 {[%clk 0:01:30]} 67. Kb1 {[%clk 0:00:22]}  Kxa3 {[%clk 0:01:31]} 68. Ka1 {[%clk 0:00:22]}  Kb3 {[%clk 0:01:32]} 69. Kb1 {[%clk 0:00:23]}  a3 {[%clk 0:01:33]} 70. Ka1 {[%clk 0:00:23]}  a2 {[%clk 0:01:34]} 1/2-1/2


[Site "https://www.chess.com"]

[Event "Titled Tuesday Blitz March 21 Early 2023"]
[White "salgadoLO"]
[Black "Leschinsky, Gary"]
[BlackFideId "30951321"]
[WhiteElo "2193"]
[BlackElo "1855"]
[Result "0-1"]
[Round "11"]
[TimeControl "180+2"]
[Date "2023.03.21"]
[WhiteClock "0:00:02"]
[BlackClock "0:00:08"]

1. d4 {[%clk 0:03:00]}  Nf6 {[%clk 0:02:59]} 2. Bg5 {[%clk 0:03:00]}  c5 {[%clk 0:02:41]} 3. Nc3 {[%clk 0:02:53]}  cxd4 {[%clk 0:02:34]} 4. Qxd4 {[%clk 0:02:53]}  Nc6 {[%clk 0:02:35]} 5. Qh4 {[%clk 0:02:53]}  e6 {[%clk 0:02:33]} 6. e4 {[%clk 0:02:44]}  d6 {[%clk 0:01:55]} 7. O-O-O {[%clk 0:02:40]}  Be7 {[%clk 0:01:34]} 8. f4 {[%clk 0:02:36]}  O-O {[%clk 0:01:17]} 9. Nf3 {[%clk 0:02:37]}  h6 {[%clk 0:00:19]} 10. e5 {[%clk 0:01:31]}  hxg5 {[%clk 0:00:16]} 11. Nxg5 {[%clk 0:01:31]}  dxe5 {[%clk 0:00:16]} 12. Rxd8 {[%clk 0:01:28]}  Rxd8 {[%clk 0:00:17]} 13. Bd3 {[%clk 0:01:16]}  exf4 {[%clk 0:00:15]} 14. Qxf4 {[%clk 0:01:00]}  e5 {[%clk 0:00:14]} 15. Qf2 {[%clk 0:00:58]}  Be6 {[%clk 0:00:14]} 16. Nxe6 {[%clk 0:00:55]}  fxe6 {[%clk 0:00:15]} 17. Bc4 {[%clk 0:00:54]}  Nd5 {[%clk 0:00:15]} 18. h4 {[%clk 0:00:46]}  Nd4 {[%clk 0:00:15]} 19. Qg3 {[%clk 0:00:39]}  Bf6 {[%clk 0:00:15]} 20. Ne4 {[%clk 0:00:36]}  Rac8 {[%clk 0:00:14]} 21. Nxf6+ {[%clk 0:00:28]}  Nxf6 {[%clk 0:00:15]} 22. Kb1 {[%clk 0:00:06]}  Rxc4 {[%clk 0:00:14]} 23. Qxe5 {[%clk 0:00:06]}  Nxc2 {[%clk 0:00:13]} 24. Rf1 {[%clk 0:00:05]}  Rc6 {[%clk 0:00:11]} 25. Qg3 {[%clk 0:00:04]}  e5 {[%clk 0:00:09]} 26. a3 {[%clk 0:00:04]}  Nd4 {[%clk 0:00:09]} 27. h5 {[%clk 0:00:03]}  Kh8 {[%clk 0:00:08]} 28. h6 {[%clk 0:00:03]}  gxh6 {[%clk 0:00:08]} 29. Qxe5 {[%clk 0:00:03]}  Rf8 {[%clk 0:00:07]} 30. Qxd4 {[%clk 0:00:02]}  a6 {[%clk 0:00:08]} 0-1


[Site "https://www.chess.com"]

[Event "Titled Tuesday Blitz March 21 Early 2023"]
[White "Singgih, Diajeng Theresa"]
[Black "Abrosimov, Vladimir"]
[WhiteFideId "7104391"]
[BlackFideId "4166892"]
[WhiteElo "1891"]
[BlackElo "2336"]
[Result "0-1"]
[Round "11"]
[TimeControl "180+2"]
[Date "2023.03.21"]
[WhiteClock "0:00:55"]
[BlackClock "0:01:21"]

1. e4 {[%clk 0:02:32]}  c5 {[%clk 0:02:58]} 2. Nf3 {[%clk 0:02:29]}  d6 {[%clk 0:02:56]} 3. d4 {[%clk 0:02:17]}  cxd4 {[%clk 0:02:57]} 4. Nxd4 {[%clk 0:02:17]}  Nf6 {[%clk 0:02:54]} 5. Nc3 {[%clk 0:02:16]}  a6 {[%clk 0:02:52]} 6. h3 {[%clk 0:02:14]}  e5 {[%clk 0:02:50]} 7. Nb3 {[%clk 0:02:12]}  Be6 {[%clk 0:02:50]} 8. Be3 {[%clk 0:02:09]}  Be7 {[%clk 0:02:51]} 9. Be2 {[%clk 0:02:07]}  O-O {[%clk 0:02:50]} 10. O-O {[%clk 0:02:07]}  Nc6 {[%clk 0:02:50]} 11. f4 {[%clk 0:02:06]}  exf4 {[%clk 0:02:48]} 12. Bxf4 {[%clk 0:02:06]}  Ne5 {[%clk 0:02:48]} 13. Nd4 {[%clk 0:01:57]}  Qb6 {[%clk 0:02:37]} 14. b3 {[%clk 0:01:50]}  Rac8 {[%clk 0:02:19]} 15. Na4 {[%clk 0:01:48]}  Qa7 {[%clk 0:02:08]} 16. Be3 {[%clk 0:01:47]}  Nc6 {[%clk 0:02:01]} 17. Rf3 {[%clk 0:01:42]}  Qb8 {[%clk 0:01:32]} 18. Nb6 {[%clk 0:01:25]}  Rcd8 {[%clk 0:01:26]} 19. c4 {[%clk 0:01:19]}  Ne5 {[%clk 0:01:22]} 20. Rg3 {[%clk 0:01:15]}  Nxe4 {[%clk 0:01:21]} 21. Rxg7+ {[%clk 0:00:55]} 0-1


[Site "https://www.chess.com"]

[Event "Titled Tuesday Blitz March 21 Early 2023"]
[White "ritanovikova"]
[Black "Kiseleva, Arina"]
[BlackFideId "4164989"]
[WhiteElo "2194"]
[BlackElo "1756"]
[Result "0-1"]
[Round "11"]
[TimeControl "180+2"]
[Date "2023.03.21"]
[WhiteClock "0:00:07"]
[BlackClock "0:00:06"]

1. e4 {[%clk 0:02:11]}  c6 {[%clk 0:02:58]} 2. d4 {[%clk 0:02:08]}  d5 {[%clk 0:02:58]} 3. Nd2 {[%clk 0:02:07]}  dxe4 {[%clk 0:02:58]} 4. Nxe4 {[%clk 0:02:07]}  Nf6 {[%clk 0:02:59]} 5. Nxf6+ {[%clk 0:02:07]}  exf6 {[%clk 0:02:59]} 6. Nf3 {[%clk 0:02:06]}  Bd6 {[%clk 0:02:58]} 7. h3 {[%clk 0:02:06]}  O-O {[%clk 0:02:57]} 8. Be2 {[%clk 0:02:06]}  Bc7 {[%clk 0:02:48]} 9. Be3 {[%clk 0:02:00]}  Nd7 {[%clk 0:02:42]} 10. Qd2 {[%clk 0:01:59]}  Nb6 {[%clk 0:02:42]} 11. Bf4 {[%clk 0:01:56]}  Bxf4 {[%clk 0:02:34]} 12. Qxf4 {[%clk 0:01:57]}  Nd5 {[%clk 0:02:34]} 13. Qd2 {[%clk 0:01:55]}  Re8 {[%clk 0:02:22]} 14. O-O {[%clk 0:01:52]}  f5 {[%clk 0:02:18]} 15. Bd3 {[%clk 0:01:49]}  g6 {[%clk 0:02:18]} 16. a3 {[%clk 0:01:47]}  Kg7 {[%clk 0:02:12]} 17. c4 {[%clk 0:01:45]}  Nf6 {[%clk 0:02:12]} 18. Qc3 {[%clk 0:01:45]}  Qd6 {[%clk 0:02:02]} 19. Rfe1 {[%clk 0:01:44]}  Bd7 {[%clk 0:01:59]} 20. Ne5 {[%clk 0:01:41]}  Rad8 {[%clk 0:01:47]} 21. Rad1 {[%clk 0:01:32]}  Be6 {[%clk 0:01:31]} 22. Bb1 {[%clk 0:01:28]}  Kg8 {[%clk 0:01:11]} 23. Rd2 {[%clk 0:01:22]}  Bc8 {[%clk 0:00:57]} 24. Red1 {[%clk 0:01:20]}  Qc7 {[%clk 0:00:19]} 25. b4 {[%clk 0:01:20]}  b6 {[%clk 0:00:19]} 26. Nf3 {[%clk 0:01:16]}  Ne4 {[%clk 0:00:17]} 27. Bxe4 {[%clk 0:01:16]}  Rxe4 {[%clk 0:00:16]} 28. Ng5 {[%clk 0:01:12]}  Re7 {[%clk 0:00:15]} 29. h4 {[%clk 0:01:06]}  Rde8 {[%clk 0:00:15]} 30. Rd3 {[%clk 0:01:03]}  f4 {[%clk 0:00:11]} 31. Qd2 {[%clk 0:01:01]}  Bf5 {[%clk 0:00:09]} 32. Rf3 {[%clk 0:00:54]}  Bg4 {[%clk 0:00:09]} 33. d5 {[%clk 0:00:51]}  cxd5 {[%clk 0:00:08]} 34. cxd5 {[%clk 0:00:51]}  Qd6 {[%clk 0:00:08]} 35. Rc1 {[%clk 0:00:39]}  Bxf3 {[%clk 0:00:08]} 36. Nxf3 {[%clk 0:00:40]}  Rd7 {[%clk 0:00:06]} 37. Rd1 {[%clk 0:00:37]}  h6 {[%clk 0:00:06]} 38. Qc3 {[%clk 0:00:34]}  Red8 {[%clk 0:00:05]} 39. h5 {[%clk 0:00:31]}  Qc7 {[%clk 0:00:05]} 40. Qf6 {[%clk 0:00:24]}  Qd6 {[%clk 0:00:05]} 41. Qh4 {[%clk 0:00:23]}  g5 {[%clk 0:00:05]} 42. Qg4 {[%clk 0:00:23]}  Qf6 {[%clk 0:00:03]} 43. Rc1 {[%clk 0:00:18]}  Rxd5 {[%clk 0:00:03]} 44. Kh2 {[%clk 0:00:14]}  Rd1 {[%clk 0:00:04]} 45. Rc7 {[%clk 0:00:12]}  R1d6 {[%clk 0:00:03]} 46. Rxa7 {[%clk 0:00:11]}  Qe6 {[%clk 0:00:02]} 47. a4 {[%clk 0:00:09]}  Qxg4 {[%clk 0:00:02]} 48. a5 {[%clk 0:00:09]}  Qe6 {[%clk 0:00:02]} 49. a6 {[%clk 0:00:07]}  b5 {[%clk 0:00:03]} 50. Rb7 {[%clk 0:00:06]}  Rxa6 {[%clk 0:00:03]} 51. Rxb5 {[%clk 0:00:06]}  Ra2 {[%clk 0:00:04]} 52. Re5 {[%clk 0:00:06]}  Qxe5 {[%clk 0:00:04]} 53. Nxe5 {[%clk 0:00:06]}  Rdd2 {[%clk 0:00:05]} 54. Ng4 {[%clk 0:00:05]}  Rxf2 {[%clk 0:00:04]} 55. Nxf2 {[%clk 0:00:05]}  Rxf2 {[%clk 0:00:05]} 56. Kh3 {[%clk 0:00:06]}  Rb2 {[%clk 0:00:05]} 57. Kg4 {[%clk 0:00:06]}  Rxb4 {[%clk 0:00:06]} 58. Kf5 {[%clk 0:00:07]}  Rb5+ {[%clk 0:00:06]} 0-1


[Site "https://www.chess.com"]